fUST/lending_fUST_20250927
["ID","MTS","AMOUNT","RATE_DAILY","PERIOD"]
[388033662,1758977438887,-151.0,0.0003199,7]
[388033663,1758977438896,-151.0,0.0003199,7]
[388033664,1758977438906,-205.10876,0.0003199,7]
[388033665,1758977438915,-209.332341,0.0003199,7]
[388033666,1758977438926,-209.332341,0.0003199,7]
[388033667,1758977438936,-209.332341,0.0003199,7]
[388033668,1758977438945,-151.0,0.0003199,7]
[388033669,1758977438954,-209.332341,0.0003199,7]
[388033670,1758977438965,-151.0,0.0003199,7]
[388033671,1758977438974,-151.0,0.0003199,7]
[388033672,1758977438984,-247.986823,0.0003199,7]
[388033673,1758977438992,-247.986823,0.0003199,7]
[388033674,1758977439002,-151.0,0.0003199,7]
[388033675,1758977439011,-28626.9683759,0.0003199,2]
[388033676,1758977439020,-151.0,0.0003199,7]
[388033677,1758977439029,-151.0,0.0003199,7]
[388033678,1758977439039,-151.0,0.0003199,7]
[388033679,1758977439048,-151.0,0.0003199,7]
[388033680,1758977439058,-151.0,0.0003199,7]
[388033681,1758977439067,-151.0,0.0003199,7]
[388033682,1758977439077,-4190.0,0.0003199,7]
[388033683,1758977439086,-4190.0,0.0003199,7]
[388033684,1758977439096,-4190.0,0.0003199,7]
[388033685,1758977439106,-4190.0,0.0003199,7]
[388033686,1758977439116,-241.651584,0.0003199,7]
[388033687,1758977439125,-135965.63684354,0.00032,7]
[388033688,1758977439137,-56895.59508144,0.00032,7]
[388033689,1758977439346,-82048.01067555,0.00032,7]
[388033690,1758977439355,-151.0,0.00032,7]
[388033691,1758977439364,-151.0,0.00032,7]
[388033692,1758977439374,-274.846186,0.00032,7]
[388033693,1758977439383,-151.0,0.00032,7]
[388033694,1758977439392,-151.0,0.00032,7]
[388033695,1758977439402,-151.0,0.00032,7]
[388033696,1758977439411,-151.0,0.00032,7]
[388033697,1758977439421,-151.0,0.00032,7]
[388033698,1758977439431,-151.0,0.00032,7]
[388033699,1758977439441,-151.0,0.00032,7]
[388033700,1758977439451,-151.0,0.00032,7]
[388033701,1758977439461,-151.0,0.00032,7]
[388033702,1758977439471,-622.462544,0.00032,7]
[388033703,1758977439480,-622.462544,0.00032,7]
[388033704,1758977439490,-622.462544,0.00032,7]
[388033705,1758977439499,-622.462544,0.00032,7]
[388033706,1758977439508,-173.952683,0.00032,7]
[388033707,1758977439519,-169.552267,0.00032,7]
[388033708,1758977439529,-173.952683,0.00032,7]
[388033709,1758977439539,-169.552267,0.00032,7]
[388033710,1758977439549,-173.952683,0.00032,7]
[388033711,1758977439559,-169.552267,0.00032,7]
[388033712,1758977439568,-173.952683,0.00032,7]
[388033713,1758977439579,-169.552267,0.00032,7]
[388033714,1758977439588,-151.0,0.00032,7]
[388033715,1758977439598,-151.0,0.00032,7]
[388033716,1758977439607,-229.52,0.00032,7]
[388033717,1758977439617,-151.0,0.00032,7]
[388033718,1758977439627,-151.0,0.00032,7]
[388033719,1758977439636,-151.0,0.00032,7]
[388033720,1758977439646,-151.0,0.00032,7]
[388033721,1758977439656,-151.0,0.00032,7]
[388033723,1758977439666,-151.0,0.00032,7]
[388033724,1758977439676,-158.657848,0.00032,7]
[388033725,1758977439686,-197.712819,0.00032,7]
[388033726,1758977439695,-151.0,0.00032,7]
[388033727,1758977439705,-151.0,0.00032,7]
[388033728,1758977439714,-151.0,0.00032,7]
[388033729,1758977439723,-151.0,0.00032,7]
[388033730,1758977439732,-209.332341,0.00032,7]
[388033731,1758977439741,-209.332341,0.00032,7]
[388033732,1758977439750,-209.332341,0.00032,7]
[388033733,1758977439759,-151.0,0.00032,7]
[388033734,1758977439768,-209.332341,0.00032,7]
[388033741,1758977439971,-151.0,0.00032,7]
[388033743,1758977439982,-151.0,0.00032,7]
[388033744,1758977439991,-247.986823,0.00032,7]
[388033746,1758977440000,-247.986823,0.00032,7]
[388033748,1758977440010,-151.0,0.00032,7]
[388033749,1758977440020,-151.0,0.00032,7]
[388033751,1758977440029,-151.0,0.00032,7]
[388033752,1758977440038,-202.600002,0.00032,7]
[388033753,1758977440047,-151.0,0.00032,7]
[388033754,1758977440056,-151.0,0.00032,7]
[388033755,1758977440066,-175.652192,0.00032,7]
[388033756,1758977440076,-4190.0,0.00032,7]
[388033757,1758977440085,-4190.0,0.00032,7]
[388033758,1758977440095,-4190.0,0.00032,7]
[388033760,1758977440104,-4190.0,0.00032,7]
[388033761,1758977440113,-375.50902156,0.00032069,2]
[388033762,1758977440123,-168.0,0.00032077,2]
[388033763,1758977440132,-738.0,0.00032119,7]
[388033764,1758977440141,-168.0,0.00032148,7]
[388033765,1758977440151,-168.0,0.00032154,2]
[388033766,1758977440160,-500.0,0.00032174,2]
[388033767,1758977440169,-1007.5307,0.000322,10]
[388033768,1758977440179,-463.8133731,0.0003229,5]
[388033769,1758977440188,-343.06988038,0.0003229,5]
[388033770,1758977440198,-375.50902156,0.00032338,2]
[388033771,1758977440207,-1000.0,0.00032421,5]
[388033772,1758977440216,-1010.09024853,0.00032421,5]
[388033773,1758977440225,-1000.0,0.00032421,5]
[388033774,1758977440234,-504.77341385,0.00032421,5]
[388033775,1758977440244,-1002.20057965,0.00032421,3]
[388033778,1758977440253,-1000.0,0.00032421,5]
[388033780,1758977440262,-500.0,0.00032421,5]
[388033782,1758977440271,-509.65861283,0.00032421,5]
[388033783,1758977440280,-613.83341633,0.00032421,5]
[388033784,1758977440289,-1000.0,0.00032421,5]
[388033785,1758977440298,-500.0,0.00032448,2]
[388033786,1758977440308,-500.0,0.00032488,5]
[388033788,1758977440317,-502.18387094,0.00032488,5]
[388033790,1758977440326,-916.63874902,0.00032491,5]
[388033791,1758977440335,-500.0,0.00032521,5]
[388033792,1758977440345,-500.0,0.00032521,5]
[388033793,1758977440354,-276.0,0.00032524,2]
[388033794,1758977440363,-276.0,0.00032574,2]
[388033795,1758977440373,-276.0,0.00032592,2]
[388033796,1758977440382,-500.0,0.000326,5]
[388033797,1758977440391,-500.0,0.000326,5]
[388033798,1758977440400,-375.50902156,0.00032606,2]
[388033799,1758977440410,-1000.0,0.000327,10]
[388033800,1758977440420,-168.0,0.0003271,2]
[388033801,1758977440428,-453.90998057,0.00032722,2]
[388033802,1758977440438,-276.0,0.00032767,2]
[388033803,1758977440447,-44774.91151494,0.000328,2]
[388033804,1758977440457,-168.0,0.00032806,2]
[388033805,1758977440466,-160.0,0.00032867,2]
[388033806,1758977440475,-210.16485027,0.0003287,2]
[388033807,1758977440485,-151.0,0.0003287,2]
[388033808,1758977440494,-500.0,0.0003287,2]
[388033809,1758977440504,-198.0,0.0003287,2]
[388033810,1758977440513,-5349.32711928,0.00032876,2]
[388033811,1758977440522,-591.637825,0.00032877,2]
[388033812,1758977440532,-500.0,0.00032886,5]
[388033813,1758977440543,-41397.19044358,0.000329,25]
[388033814,1758977440552,-151.0,0.000329,14]
[388033815,1758977440562,-151.0,0.000329,7]
[388033816,1758977440571,-151.0,0.000329,7]
[388033817,1758977440580,-151.0,0.000329,7]
[388033818,1758977440590,-177.9111,0.000329,7]
[388033819,1758977440599,-151.0,0.000329,7]
[388033820,1758977440608,-151.0,0.000329,7]
[388033821,1758977440617,-151.0,0.000329,7]
[388033822,1758977440626,-151.0,0.000329,7]
[388033823,1758977440636,-151.0,0.000329,7]
[388033824,1758977440645,-151.0,0.000329,7]
[388033825,1758977440655,-151.0,0.000329,7]
[388033826,1758977440664,-290.072504,0.000329,7]
[388033827,1758977440674,-271.8,0.000329,7]
[388033828,1758977440683,-151.0,0.000329,7]
[388033829,1758977440691,-151.0,0.000329,7]
[388033830,1758977440701,-151.0,0.000329,7]
[388033831,1758977440711,-151.0,0.000329,7]
[388033832,1758977440720,-151.0,0.000329,7]
[388033833,1758977440729,-151.0,0.000329,7]
[388033834,1758977440739,-622.462544,0.000329,7]
[388033835,1758977440747,-622.462544,0.000329,7]
[388033836,1758977440756,-622.462544,0.000329,7]
[388033837,1758977440765,-622.462544,0.000329,7]
[388033838,1758977440774,-173.952683,0.000329,7]
[388033839,1758977440783,-169.552267,0.000329,7]
[388033840,1758977440792,-173.952683,0.000329,7]
[388033841,1758977440801,-169.552267,0.000329,7]
[388033842,1758977440810,-173.952683,0.000329,7]
[388033843,1758977440820,-169.552267,0.000329,7]
[388033844,1758977440829,-173.952683,0.000329,7]
[388033845,1758977440838,-169.552267,0.000329,7]
[388033846,1758977440847,-151.0,0.000329,7]
[388033847,1758977440856,-151.0,0.000329,7]
[388033848,1758977440866,-151.0,0.000329,7]
[388033849,1758977440875,-151.0,0.000329,7]
[388033850,1758977440889,-151.0,0.000329,7]
[388033851,1758977440899,-151.0,0.000329,7]
[388033852,1758977440908,-151.0,0.000329,7]
[388033853,1758977440918,-151.0,0.000329,7]
[388033854,1758977440930,-151.0,0.000329,7]
[388033855,1758977440939,-272.88686,0.000329,7]
[388033856,1758977440948,-272.88686,0.000329,7]
[388033857,1758977440959,-272.88686,0.000329,7]
[388033858,1758977440968,-272.88686,0.000329,7]
[388033859,1758977440977,-151.37637,0.000329,7]
[388033860,1758977440986,-151.0,0.000329,7]
[388033861,1758977440995,-151.0,0.000329,7]
[388033862,1758977441005,-151.0,0.000329,7]
[388033863,1758977441014,-151.0,0.000329,7]
[388033864,1758977441023,-151.0,0.000329,7]
[388033865,1758977441033,-151.0,0.000329,7]
[388033866,1758977441043,-209.332341,0.000329,7]
[388033867,1758977441053,-209.332341,0.000329,7]
[388033868,1758977441062,-209.332341,0.000329,7]
[388033869,1758977441071,-151.0,0.000329,7]
[388033870,1758977441081,-209.332341,0.000329,7]
[388033871,1758977441090,-151.0,0.000329,7]
[388033872,1758977441099,-151.0,0.000329,7]
[388033873,1758977441109,-247.986823,0.000329,7]
[388033874,1758977441118,-247.986823,0.000329,7]
[388033875,1758977441128,-151.0,0.000329,7]
[388033876,1758977441137,-151.0,0.000329,7]
[388033877,1758977441146,-151.0,0.000329,7]
[388033878,1758977441155,-151.0,0.000329,7]
[388033879,1758977441164,-4190.0,0.000329,7]
[388033880,1758977441174,-4190.0,0.000329,7]
[388033881,1758977441183,-4190.0,0.000329,7]
[388033882,1758977441192,-3067.13973362,0.000329,7]
[388033883,1758977441205,-526.46954481,0.000329,7]
[388033884,1758977441259,-596.39072157,0.000329,7]
[388033885,1758977441268,-619.95648,0.00032948,2]
[388033886,1758977441278,-760.65279843,0.00032968,5]
[388033887,1758977441617,-375.50902156,0.00032875,2]
[388033888,1758977441627,-222.93861029,0.00032968,5]
[388033889,1758977441638,-516.40859128,0.00032968,5]
[388033890,1758977441647,-1500.0,0.00032968,5]
[388033891,1758977441657,-200.0,0.00032971,10]
[388033892,1758977441666,-151.0,0.00032972,7]
[388033893,1758977441675,-189.33502,0.00032972,7]
[388033894,1758977441684,-151.0,0.00032972,7]
[388033895,1758977441694,-151.0,0.00032972,7]
[388033896,1758977441703,-151.0,0.00032972,7]
[388033897,1758977441712,-151.0,0.00032972,7]
[388033898,1758977441721,-500.0,0.00032973,5]
[388033899,1758977441730,-325.501132,0.00032973,5]
[388033900,1758977441739,-500.0,0.00032973,5]
[388033901,1758977441748,-500.0,0.00032973,5]
[388033902,1758977441758,-500.0,0.00032973,5]
[388033903,1758977441767,-501.00043887,0.00032973,5]
[388033904,1758977441776,-266.1219387,0.00032973,5]
[388033905,1758977441785,-500.0,0.00032973,5]
[388033906,1758977441795,-500.0,0.00032973,5]
[388033907,1758977441805,-500.0,0.00032973,5]
[388033908,1758977441814,-54.64502739,0.00032973,5]
[388033909,1758977441831,-521.61300384,0.00032973,5]
[388033910,1758977441839,-500.0,0.00032973,5]
[388033911,1758977441848,-13.48539758,0.00032973,5]
[388033912,1758977441859,-265.08307594,0.00032973,5]
[388033913,1758977441870,-221.43152648,0.00032973,5]
[388033914,1758977441881,-151.0,0.00032975,7]
[388033915,1758977441892,-151.0,0.00032975,7]
[388033916,1758977441901,-22.77124076,0.00032975,7]
[388033917,1758977441912,-4167.22875924,0.00032975,7]
[388033918,1758977441922,-4190.0,0.00032975,7]
[388033919,1758977441931,-4190.0,0.00032975,7]
[388033920,1758977441941,-4190.0,0.00032975,7]
[388033921,1758977441950,-4805.35581314,0.00032975,20]
[388033922,1758977441962,-671.77936835,0.00032975,20]
[388033923,1758977441973,-5618.83711693,0.00032975,20]
[388033932,1758977443181,-151.0,0.000319,7]
[388033933,1758977443191,-20165.93056,0.00032975,20]
[388033934,1758977443238,-3929.99999999,0.00032975,20]
[388033935,1758977443328,-134.41603702,0.00032975,20]
[388033936,1758977443339,-2713.05038337,0.00032975,20]
[388033937,1758977443350,-32125.84585692,0.00032975,20]
[388033938,1758977443361,-2387.82777826,0.00032975,20]
[388033939,1758977443376,-151.0,0.0003199,7]
[388033940,1758977443386,-773.2232201,0.00032975,20]
[388033982,1758977446148,-665.64126112,0.00032975,20]
[388033983,1758977446160,-5523.66217482,0.00032975,20]
[388033984,1758977446224,-2990.34365181,0.00032975,20]
[388033990,1758978442119,-193.16794122,0.00025,7]
[388033991,1758978442139,-181.1630566,0.00027332,2]
[388033992,1758978442160,-64.78519575,0.00027819,2]
[388033994,1758978545115,-1215.62716505,0.00027819,2]
[388033995,1758978545136,-300.0,0.00027965,2]
[388033996,1758978545156,-500.0,0.00027966,2]
[388033997,1758978545175,-607.94248488,0.00027966,2]
[388033998,1758978545195,-311.16550426,0.00027966,2]
[388033999,1758978545215,-500.0,0.00027966,2]
[388034000,1758978545235,-500.0,0.00027966,2]
[388034001,1758978545255,-500.0,0.00027966,2]
[388034002,1758978545276,-1200.0,0.00027967,2]
[388034003,1758978545296,-300.0,0.00027968,2]
[388034004,1758978545315,-1000.0,0.0002797,30]
[388034005,1758978545336,-6329.74959633,0.0002797,2]
[388034006,1758978547079,-10605.50443049,0.0002797,2]
[388034007,1758978550088,-11354.06471222,0.0002797,2]
[388034008,1758978558115,-9731.46529271,0.0002797,2]
[388034009,1758978571091,-9214.52813457,0.0002797,2]
[388034046,1758978632575,-160.0,0.00028883,2]
[388034048,1758978632585,-700.0,0.000289,2]
[388034049,1758978632594,-274.0,0.00028989,2]
[388034051,1758978632604,-660.75,0.0002899,3]
[388034053,1758978632614,-330.38,0.0002899,3]
[388034055,1758978632624,-165.19,0.0002899,3]
[388034057,1758978632633,-495.58,0.0002899,3]
[388034059,1758978632642,-29601.5837822,0.0002899,2]
[388034061,1758978632652,-40700.79686491,0.00029,15]
[388034062,1758978632664,-602.61685635,0.00029,15]
[388034063,1758978632691,-8261.31037054,0.00029,15]
[388034065,1758978632702,-176003.51345815,0.00029,15]
[388034067,1758978632713,-834.3094557,0.00029,15]
[388034069,1758978632724,-1367.01900481,0.00029,15]
[388034071,1758978632737,-1726.80952258,0.00029,15]
[388034099,1758978638341,-4342.98950061,0.00029,15]
[388034100,1758978638454,-75904.46538936,0.00029,15]
[388034102,1758978640723,-3685.88596515,0.00029,15]
[388034248,1758978646543,-779.92137,0.00029,15]
[388034249,1758978646555,-4016.47577832,0.00029,15]
[388034250,1758978686869,150.0,0.000247,2]
[388034251,1758978687108,172.1,0.000251,2]
[388034252,1758978720354,517.75355587,0.00025205,2]
[388034253,1758978911980,-5000.0,0.00024953,13]
[388034254,1758978921970,0.01,0.00024953,2]
[388034255,1758978921993,4327.02559139,0.00024953,2]
[388034256,1758978937722,1699.49177716,0.00024953,2]
[388034257,1758978945854,1972.8911664,0.00024953,2]
[388034258,1758978954434,263.33943895,0.00024953,2]
[388034259,1758978980047,346.7839781,0.00024198,2]
[388034260,1758978999085,1000.0,0.00024406,2]
[388034261,1758979001543,390.478048,0.00024406,2]
[388034262,1758979001567,8620.8311728,0.00024406,2]
[388034263,1758979021052,4766.45356106,0.00024953,2]
[388034264,1758979043472,230.8039011,0.00024198,2]
[388034265,1758979060976,666.0,0.00024198,2]
[388034266,1758979137245,160.0,0.00024953,2]
[388034267,1758979141634,-303.55137951,0.00029534,35]
[388034268,1758979141664,-200.0,0.0003,120]
[388034269,1758979141711,-151.0,0.00033077,30]
[388034270,1758979141741,-296.9209673,0.00033425,30]
[388034271,1758979141771,-296.9209673,0.00033699,30]
[388034272,1758979141801,-151.0,0.00034124,30]
[388034273,1758979141833,-2945.18985631,0.000342,30]
[388034274,1758979141861,-5000.0,0.00035,120]
[388034275,1758979141890,-162.0,0.00035,30]
[388034276,1758979141921,-151.0,0.00035171,30]
[388034277,1758979141986,-500.0,0.00035616,30]
[388034278,1758979142035,-685.7,0.00035616,120]
[388034279,1758979142067,-586.5092015,0.00035699,30]
[388034280,1758979142097,-586.5092015,0.00035699,30]
[388034281,1758979142127,-162.3399399,0.00035699,30]
[388034282,1758979142155,-586.5092015,0.00035699,30]
[388034283,1758979142183,-586.5092015,0.00035699,30]
[388034284,1758979142213,-307.4233264,0.00035699,30]
[388034285,1758979142241,-163.0,0.000357,42]
[388034286,1758979142272,-5000.0,0.000358,60]
[388034287,1758979142301,-201.0,0.0003582,41]
[388034288,1758979142356,-500.0,0.0003589,30]
[388034289,1758979142399,-296.6276561,0.0003589,30]
[388034290,1758979142427,-162.3399399,0.0003589,30]
[388034291,1758979142457,-162.3399399,0.0003589,30]
[388034292,1758979142506,-500.0,0.00036164,30]
[388034293,1758979142549,-151.0,0.00036218,30]
[388034294,1758979142604,-500.0,0.00036438,30]
[388034295,1758979142660,-500.0,0.00036712,30]
[388034296,1758979142701,-243212.96989224,0.00036789,60]
[388034297,1758979142730,-190.0,0.00036852,30]
[388034298,1758979142774,-500.0,0.00036986,30]
[388034299,1758979142813,-410.15833125,0.00037,120]
[388034300,1758979142842,-506.12936763,0.00037008,30]
[388034301,1758979142871,-586.1331603,0.00037123,30]
[388034302,1758979142912,-500.0,0.0003726,30]
[388034303,1758979142948,-151.0,0.00037265,30]
[388034304,1758979142989,-500.0,0.00037534,30]
[388034305,1758979143029,-1630.22467477,0.000378,120]
[388034306,1758979143068,-514.89286027,0.00037808,30]
[388034307,1758979143105,-219.1,0.00037878,30]
[388034308,1758979143132,-2272.74600022,0.00038,30]
[388034309,1758979143160,-233.76631357,0.00038,120]
[388034310,1758979143188,-150.69317101,0.00038,120]
[388034311,1758979143215,-150.69317101,0.00038,120]
[388034312,1758979143242,-150.69317101,0.00038,120]
[388034313,1758979143268,-150.69317101,0.00038,120]
[388034314,1758979143295,-150.69317101,0.00038,120]
[388034315,1758979143324,-150.69317101,0.00038,120]
[388034316,1758979143369,-219.1,0.00038125,30]
[388034317,1758979143396,-151.0,0.00038312,30]
[388034318,1758979143425,-500.0,0.00038325,30]
[388034319,1758979143469,-219.1,0.00038371,30]
[388034320,1758979143497,-219.1,0.00038618,30]
[388034321,1758979143540,-219.1,0.00038864,30]
[388034322,1758979143583,-219.1,0.00039111,30]
[388034323,1758979143624,-219.1,0.00039357,30]
[388034324,1758979143650,-502.87086378,0.00039357,30]
[388034325,1758979143675,-151.0,0.00039359,30]
[388034326,1758979143701,-428.9265213,0.0003937,30]
[388034327,1758979143740,-219.1,0.00039604,30]
[388034328,1758979143780,-215.44455251,0.00039793,30]
[388034329,1758979143805,-219.1,0.0003985,30]
[388034330,1758979143834,-600.0,0.00039882,90]
[388034331,1758979143860,-170.17474482,0.00039999,31]
[388034332,1758979143886,-414.6027704,0.00039999,31]
[388034333,1758979143913,-464.33818014,0.00039999,31]
[388034334,1758979143939,-388.34062016,0.00039999,31]
[388034335,1758979144149,-500.0,0.00039999,31]
[388034336,1758979144176,-500.0,0.00039999,31]
[388034337,1758979144203,-236.08420774,0.00039999,31]
[388034338,1758979144238,-300.79620825,0.00039999,31]
[388034339,1758979144264,-500.0,0.00039999,31]
[388034340,1758979144291,-500.0,0.00039999,31]
[388034341,1758979144317,-500.0,0.00039999,31]
[388034342,1758979144347,-324.82896044,0.00039999,31]
[388034343,1758979144371,-820.17229884,0.0004,120]
[388034344,1758979144396,-200.0,0.0004,120]
[388034345,1758979144433,-219.1,0.00040097,30]
[388034346,1758979144468,-219.1,0.00040343,30]
[388034347,1758979144492,-151.0,0.00040406,30]
[388034348,1758979144527,-219.1,0.0004059,30]
[388034349,1758979144562,-219.1,0.00040836,30]
[388034350,1758979144586,-219.1,0.00041083,120]
[388034351,1758979144620,-500.0,0.00041095,120]
[388034352,1758979144646,-37811.34,0.00041096,120]
[388034353,1758979144669,-169.0950664,0.00041096,120]
[388034354,1758979144693,-219.1,0.00041329,120]
[388034355,1758979144727,-500.0,0.00041369,120]
[388034356,1758979144755,-151.0,0.00041453,120]
[388034357,1758979144779,-219.1,0.00041576,120]
[388034358,1758979144812,-500.0,0.00041643,120]
[388034359,1758979144847,-500.0,0.00041917,120]
[388034360,1758979144874,-1506.28800921,0.00042,120]
[388034361,1758979144899,-4999.99999901,0.00042,120]
[388034362,1758979144926,-4000.0,0.00042,120]
[388034363,1758979144950,-500.0,0.00042191,120]
[388034364,1758979144976,-500.0,0.00042465,120]
[388034365,1758979145001,-500.0,0.000425,30]
[388034366,1758979145025,-151.0,0.000425,120]
[388034367,1758979145050,-500.0,0.00042739,120]
[388034368,1758979145075,-25351.27,0.00043,120]
[388034369,1758979145099,-66924.39,0.00043,120]
[388034370,1758979145123,-47867.0921932,0.00043,120]
[388034371,1758979145150,-500.0,0.00043013,120]
[388034372,1758979145174,-202.45027097,0.00043285,120]
[388034373,1758979145199,-500.0,0.00043287,120]
[388034374,1758979145224,-30000.0,0.000434,30]
[388034375,1758979145250,-169.479402,0.000434,30]
[388034376,1758979145274,-2054046.08691049,0.000435,120]
[388034377,1758979145299,-500.0,0.00043561,120]
[388034378,1758979145324,-210.48,0.00043691,30]
[388034379,1758979145350,-510.0,0.000438,90]
[388034380,1758979145376,-500.0,0.00043835,120]
[388034381,1758979145404,-720.0,0.0004387,90]
[388034382,1758979145427,-976.61365638,0.000439,120]
[388034383,1758979145450,-200.0,0.00044,120]
[388034384,1758979145474,-500.0,0.00044109,120]
[388034385,1758979145500,-500.0,0.00044383,120]
[388034386,1758979145523,-2935.7941592,0.000445,120]
[388034387,1758979145546,-500.0,0.00044625,30]
[388034388,1758979145569,-500.0,0.00044657,120]
[388034389,1758979145594,-500.0,0.00044931,120]
[388034390,1758979145618,-213.5739895,0.00045,30]
[388034391,1758979145641,-2000.0,0.00045,120]
[388034392,1758979145664,-693.0,0.00045,120]
[388034393,1758979145689,-5000.0,0.00045,120]
[388034394,1758979145713,-500.0,0.00045205,120]
[388034395,1758979145737,-500.0,0.00045479,120]
[388034396,1758979145762,-500.0,0.00045753,120]
[388034397,1758979145786,-64350.56922324,0.000459,120]
[388034398,1758979145810,-200.0,0.00045997,120]
[388034399,1758979145834,-200.0,0.00046,120]
[388034400,1758979145858,-40000.0,0.00046,30]
[388034401,1758979145880,-30000.0,0.00046,35]
[388034402,1758979145904,-500.0,0.00046027,120]
[388034403,1758979145928,-444.87565181,0.00046301,120]
[388034404,1758979145952,-2000.0,0.000464,41]
[388034405,1758979145976,-4000.0,0.000465,120]
[388034406,1758979147945,1000.0,0.00032602,120]
[388034407,1758979148244,440.0,0.00032602,120]
[388034408,1758979163059,2000.0,0.00032,120]
[388034409,1758979163397,1763.306,0.00032,120]
[388034410,1758979206722,255.0,0.00024,120]
[388034411,1758979225401,2000.0,0.0002797,120]
[388034412,1758979225707,1763.306,0.0002797,120]
[388034413,1758979272953,200.0,0.00024658,15]
[388034414,1758979286869,507.198,0.0002797,120]
[388034415,1758979331665,6116.25,0.00033009,120]
[388034416,1758979532093,-165.699368,0.00024196,2]
[388034417,1758979532115,-42.84467773,0.00025,2]
[388034419,1758979634080,-238.70659869,0.00025,2]
[388034420,1758979639205,-218.44872358,0.00025,2]
[388034421,1758979639225,-25.1846698,0.00025094,2]
[388034422,1758979646098,-148.82430482,0.00025094,2]
[388034423,1758979646118,-29.91689443,0.00025192,2]
[388034424,1758979651120,-270.08310557,0.00025192,2]
[388034425,1758979651142,-300.0,0.00025192,2]
[388034426,1758979651163,-1200.0,0.00025192,2]
[388034427,1758979651185,-5947.96310438,0.00025193,2]
[388034428,1758979651220,1497.22234893,0.00033101,120]
[388034429,1758979666005,300.97323291,0.00033101,120]
[388034430,1758979670426,10000.01,0.00018,2]
[388034431,1758979670448,9942.92143236,0.00018,2]
[388034437,1758979702051,57.08856764,0.00015,2]
[388034438,1758979702074,947.33343094,0.00015,2]
[388034439,1758979704057,2106.3926156,0.000176,2]
[388034440,1758979711959,1235.92456334,0.00033101,60]
[388034441,1758979714206,6946.28395346,0.00017,2]
[388034442,1758979714229,9917.31876496,0.00017,2]
[388034443,1758979716873,82.69123504,0.00015,2]
[388034444,1758979716895,1130.91761661,0.00015,2]
[388034445,1758979718643,248.8449715,0.00033101,120]
[388034446,1758979718980,1069.94458177,0.00033101,120]
[388034447,1758979719858,219.23195071,0.00033101,120]
[388034448,1758979719890,1928.09567673,0.00033101,120]
[388034449,1758979722259,208.81872933,0.00033101,60]
[388034450,1758979726893,416.11377354,0.00033101,120]
[388034451,1758979727013,203.77684057,0.00033101,120]
[388034452,1758979751097,-1310.0001398,0.000203,2]
[388034453,1758979751118,-1370.12795388,0.0002061,2]
[388034454,1758979751140,-2380.70115148,0.000215,2]
[388034455,1758979751161,-300.0,0.00024649,2]
[388034456,1758979751181,-9971.68120309,0.0002465,2]
[388034457,1758979751201,-500.0,0.00024773,2]
[388034458,1758979751221,-500.0,0.00024773,2]
[388034459,1758979751241,-500.0,0.00024773,2]
[388034460,1758979751262,-500.0,0.00024773,2]